bitfinex-derivatives/quotes_SOLF0:USTF0_20250125
["timestamp","ask_amount","ask_price","bid_price","bid_amount"]
[1737831946931,0.02453937,258.28,258.23,0.02470773]
[1737831947533,5.34207284,258.37,258.23,0.02470773]
[1737831948530,0.02493021,258.33,258.23,0.02470773]
[1737831948924,0.02493021,258.33,258.27,3.8724]
[1737831949235,0.02493021,258.33,258.23,0.02470773]
[1737831949437,0.02493021,258.33,258.29,3.8721]
[1737831950535,0.02493021,258.33,258.31,3.8718]
[1737831951934,0.02493021,258.33,258.28,0.02959958]
[1737831952936,0.02493021,258.33,258.3,3.872]
[1737831953637,0.02493021,258.33,258.28,0.02959958]
[1737831953938,3.8717,258.32,258.28,0.02959958]
[1737831955036,0.02493021,258.33,258.28,0.02959958]
[1737831956434,0.02493021,258.33,258.18,2.76]
[1737831956639,14.67128943,258.4,258.21,14.67128943]
[1737831957540,0.02658558,258.33,258.28,0.02451304]
[1737831957746,0.02658558,258.33,258.29,3.8721]
[1737831958240,0.02658558,258.33,258.28,0.02451304]
[1737831959243,3.8719,258.31,258.28,0.02451304]
[1737831959444,0.02658558,258.33,258.28,0.02451304]
[1737831959739,3.8721,258.29,258.28,0.02451304]
[1737831960752,0.02658558,258.33,258.28,0.02451304]
[1737831961247,0.02658558,258.33,258.29,3.8721]
[1737831963256,0.02658558,258.33,258.3,3.872]
[1737831963652,0.02658558,258.33,258.28,0.02451304]
[1737831963953,0.02658558,258.33,258.28,3.89661304]
[1737831964248,14.67128943,258.29,258.01,14.67128943]
[1737831964452,3.8739,258.18,258.1,3.8749]
[1737831964749,14.67128943,258.22,258.07,1.2516]
[1737831964946,3.8741,258.16,258.09,3.875]
[1737831965151,14.67128943,258.22,258.07,1.2516]
[1737831965448,0.029373,258.14,258.1,3.8749]
[1737831965652,0.029373,258.14,258.09,0.02614241]
[1737831966650,0.029373,258.14,258.12,3.8746]
[1737831966852,0.029373,258.14,258.09,0.02614241]
[1737831967248,0.029373,258.14,258.11,3.8748]
[1737831968145,0.029373,258.14,258.09,0.02614241]
[1737831970154,0.029373,258.14,258.12,3.8746]
[1737831974753,3.8733,258.22,258.09,0.02614241]
[1737831974949,14.67128943,258.29,258.07,1.2516]
[1737831975152,14.67128943,258.29,258.21,3.8732]
[1737831975153,3.8726,258.26,258.21,3.8732]
[1737831975859,3.8726,258.26,258.21,3.9027728]
[1737831975860,3.90159256,258.26,258.21,3.9027728]
[1737831976457,0.02899256,258.26,258.21,0.0295728]
[1737831976757,3.8729,258.25,258.21,0.0295728]
[1737831976954,3.8729,258.25,258.07,1.2516]
[1737831977157,14.67128943,258.29,258.07,1.2516]
[1737831977551,3.8747,258.12,258.05,3.8756]
[1737831977748,14.67128943,258.23,258.01,1.2429]
[1737831978158,0.02829741,258.15,258.1,0.02755289]
[1737831978657,0.02829741,258.15,258.12,3.8746]
[1737831978859,0.02829741,258.15,258.1,0.02755289]
[1737831980059,0.02829741,258.15,258.13,3.8745]
[1737831980353,0.02829741,258.15,258.1,0.02755289]
[1737831981159,0.02829741,258.15,258.13,3.8745]
[1737831982460,0.02829741,258.15,258.12,3.8747]
[1737831982660,0.02829741,258.15,258.1,0.02755289]
[1737831983962,0.02829741,258.15,258.11,3.8748]
[1737831986665,0.02829741,258.15,258.1,0.02755289]
[1737831986866,0.02829741,258.15,258.12,3.8747]
[1737831987067,0.02829741,258.15,258.1,0.02755289]
[1737831987766,0.02829741,258.15,258.11,3.8747]
[1737831988168,195.0,258.31,258.22,3.8731]
[1737831988169,3.8722,258.29,258.22,3.8731]
[1737831988666,3.872,258.31,258.16,9.16787696]
[1737831988870,5.34207284,258.33,258.28,3.8722]
[1737831989171,3.01315058,258.3,258.17,2.6016]
[1737831989371,3.01315058,258.3,258.28,0.02832018]
[1737831989673,5.36725543,258.33,258.17,2.6016]
[1737831989674,0.02670199,258.32,258.26,0.02916126]
[1737831989970,5.34207284,258.33,258.26,0.02916126]
[1737831990167,3.872,258.3,258.26,0.02916126]
[1737831990468,3.01237372,258.31,258.26,0.02916126]
[1737831991169,3.01237372,258.3,258.26,0.02916126]
[1737831991772,3.8723,258.28,258.26,0.02916126]
[1737831992469,3.01237372,258.29,258.26,0.02916126]
[1737831992671,6.88467372,258.29,258.26,0.02916126]
[1737831992970,3.01237372,258.29,258.26,0.02916126]
[1737831993371,3.8722,258.29,258.26,0.02916126]
[1737831993767,14.68177262,258.32,258.26,0.02916126]
[1737831993768,0.02798612,258.32,258.26,0.02916126]
[1737831994269,0.02798612,258.32,258.26,3.90166126]
[1737831994471,0.02798612,258.32,258.26,0.02916126]
[1737831996162,0.02798612,258.32,258.28,3.8722]
[1737831997974,0.02798612,258.32,258.29,3.8721]
[1737831998576,0.02798612,258.32,258.26,0.02916126]
[1737831999569,3.8721,258.29,258.17,2.6016]
[1737831999872,3.7886,258.39,258.17,2.6016]
[1737831999873,14.6537865,258.33,258.17,2.6016]
[1737832000274,3.8727,258.26,258.17,2.6016]
[1737832000475,14.6537865,258.33,258.17,2.6016]
[1737832000874,0.02709231,258.28,258.22,0.02662081]
[1737832003172,0.02709231,258.28,258.24,3.8728]
[1737832003373,0.02709231,258.28,258.22,0.02662081]
[1737832003677,0.02709231,258.28,258.27,3.8724]
[1737832003875,0.02709231,258.28,258.22,0.02662081]
[1737832004179,0.02709231,258.28,258.27,3.8724]
[1737832006075,0.02709231,258.28,258.25,3.8726]
[1737832006579,0.02709231,258.28,258.22,0.02662081]
[1737832007481,0.02709231,258.28,258.24,3.8728]
[1737832008582,0.02709231,258.28,258.22,0.02662081]
[1737832008881,0.02709231,258.28,258.25,3.8727]
[1737832012082,0.02709231,258.28,258.22,0.02662081]
[1737832013279,3.8727,258.26,258.22,0.02662081]
[1737832013484,0.02709231,258.28,258.22,0.02662081]
[1737832014487,3.8724,258.27,258.22,0.02662081]
[1737832014882,9.15876183,258.26,258.03,9.15876183]
[1737832015085,9.15876183,258.21,258.06,2.5756]
[1737832015987,3.8744,258.14,258.13,0.02598378]
[1737832020693,3.8748,258.11,258.1,57.20480587]
[1737832020992,0.02721138,258.18,258.06,2.5756]
[1737832021187,9.15876183,258.21,258.06,2.5756]
[1737832021394,9.15876183,258.16,258.06,2.5756]
[1737832021789,3.90298038,258.14,258.08,0.02504114]
[1737832022094,0.02858038,258.14,258.08,0.02504114]
[1737832023094,3.8751,258.09,258.08,0.02504114]
[1737832023498,0.02858038,258.14,258.08,0.02504114]
[1737832024397,3.8751,258.09,258.08,0.02504114]
[1737832027797,9.15876183,258.12,258.08,0.02504114]
[1737832028997,3.8751,258.1,258.08,0.02504114]
[1737832030595,13.03356183,258.12,258.08,0.02504114]
[1737832030797,9.15876183,258.12,258.08,0.02504114]
[1737832031600,3.8749,258.11,258.08,0.02504114]
[1737832032099,9.15876183,258.12,258.08,0.02504114]
[1737832032298,3.875,258.1,258.08,0.02504114]
[1737832033598,3.8751,258.09,258.08,0.02504114]
[1737832033799,0.02858038,258.14,258.08,0.02504114]
[1737832034102,3.8751,258.09,258.08,0.02504114]
[1737832041906,0.02858038,258.14,258.08,0.02504114]
[1737832042302,3.8751,258.09,258.08,0.02504114]
[1737832042908,0.02858038,258.14,258.08,0.02504114]
[1737832043310,0.02858038,258.14,258.04,3.86299498]
[1737832043505,0.02858038,258.14,257.99,9.15876183]
[1737832043704,0.02858038,258.14,258.02,3.8761]
[1737832044407,0.02858038,258.14,258.05,0.02459144]
[1737832044803,3.8754,258.07,258.05,0.02459144]
[1737832045209,3.90060453,258.09,258.05,0.02459144]
[1737832047413,0.02540453,258.09,258.05,0.02459144]
[1737832047615,3.8755,258.07,258.05,0.02459144]
[1737832047813,0.02540453,258.09,258.05,0.02459144]
[1737832048112,3.8756,258.06,258.05,0.02459144]
[1737832049510,3.8754,258.07,258.05,0.02459144]
[1737832050211,5.89656454,258.09,258.05,0.02459144]
[1737832051314,3.8755,258.07,258.05,0.02459144]
[1737832051514,5.89656454,258.09,258.05,0.02459144]
[1737832051907,3.8754,258.07,258.05,0.02459144]
[1737832053415,5.89656454,258.09,258.05,0.02459144]
[1737832053611,0.02540453,258.09,258.07,3.8754]
[1737832054015,0.02540453,258.09,258.05,3.90019144]
[1737832054215,0.02540453,258.09,258.05,0.02459144]
[1737832056115,0.02540453,258.09,258.07,3.8754]
[1737832056414,0.02540453,258.09,258.05,0.02459144]
[1737832057211,5.87116001,258.07,258.05,0.02459144]
[1737832058018,5.87116001,258.07,257.81,5.87116001]
[1737832058220,5.87116001,257.93,257.81,5.87116001]
[1737832058519,5.87116001,257.93,257.84,5.87116001]
[1737832058719,5.87116001,257.96,257.84,5.87116001]
[1737832059115,5.87116001,257.9,257.87,0.02687357]
[1737832059420,5.87116001,257.9,257.81,5.87116001]
[1737832059616,0.02837977,257.91,257.86,0.02835124]
[1737832059820,9.1885647,257.92,257.82,1.3107]
[1737832060025,0.02716955,257.91,257.86,0.02914558]
[1737832061521,3.03446658,257.9,257.86,0.02914558]
[1737832062222,6.955e-05,257.91,257.87,9.1885647]
[1737832062720,6.955e-05,257.91,257.9,3.878]
[1737832062917,9.1885647,258.09,257.87,9.1885647]
[1737832063123,4.85023765,258.04,257.94,9.1885647]
[1737832063418,4.85023765,258.04,257.95,2.6635]
[1737832063821,4.85023765,258.04,257.99,3.8765]
[1737832064024,0.02953608,258.02,257.99,3.8765]
[1737832064518,0.02953608,258.02,257.97,0.02472202]
[1737832064721,0.02953608,258.02,258.0,3.8764]
[1737832064919,0.02953608,258.02,257.97,0.02472202]
[1737832065725,0.02953608,258.02,258.0,3.8764]
[1737832066124,0.02953608,258.02,257.94,4.01947161]
[1737832067022,0.02953608,258.02,258.0,3.8764]
[1737832071224,3.8647,258.14,257.98,9.1885647]
[1737832071418,3.8647,258.14,257.96,3.8725]
[1737832071419,3.8747,258.13,258.07,3.8753]
[1737832072024,3.03119238,258.12,258.07,3.8753]
[1737832072522,3.05676782,258.12,258.07,3.90284558]
[1737832072825,6.90609238,258.11,258.07,0.02754558]
[1737832073026,3.03119238,258.11,258.07,0.02754558]
[1737832073424,3.03119238,258.11,258.07,3.90294558]
[1737832073728,3.03119238,258.11,258.07,0.02754558]
[1737832074029,0.02557544,258.12,258.07,0.02754558]
[1737832074328,0.02557544,258.12,258.07,3.90284558]
[1737832075125,3.90027544,258.12,258.07,3.90284558]
[1737832075323,3.90027544,258.12,258.07,0.02754558]
[1737832077325,0.02557544,258.12,258.07,0.02754558]
[1737832077931,3.8753,258.08,258.07,0.02754558]
[1737832078725,9.1885647,258.09,257.93,9.1885647]
[1737832079031,9.1885647,258.01,257.85,9.1885647]
[1737832079632,7.87603629,258.0,257.85,9.1885647]
[1737832079831,0.02561509,257.96,257.9,0.02576236]
[1737832081632,0.02561509,257.96,257.94,3.8774]
[1737832084231,0.02561509,257.96,257.9,0.02576236]
[1737832084439,0.02561509,257.96,257.9,3.90366236]
[1737832084936,0.02561509,257.96,257.91,3.8778]
[1737832086337,0.02561509,257.96,257.9,0.02576236]
[1737832086537,0.02561509,257.96,257.94,3.8773]
[1737832086837,0.02561509,257.96,257.93,0.08427757]
[1737832088233,0.02561509,257.96,257.94,3.8773]
[1737832091636,0.02561509,257.96,257.9,0.02576236]
[1737832091942,0.02561509,257.96,257.95,3.8772]
[1737832097240,3.8757,258.06,258.01,3.8763]
[1737832098143,3.8755,258.07,257.93,9.1885647]
[1737832098345,0.02561334,258.06,258.01,0.02826522]
[1737832098742,0.02561334,258.06,258.01,9.21682992]
[1737832099238,0.02561334,258.06,258.01,3.90446522]
[1737832099435,0.02561334,258.06,258.01,0.02826522]
[1737832100938,0.02561334,258.06,258.02,3.8761]
[1737832101538,0.02561334,258.06,258.01,0.02826522]
[1737832101837,0.02561334,258.06,258.01,3.90456522]
[1737832102240,0.02561334,258.06,258.01,0.02826522]
[1737832102435,0.02561334,258.06,258.01,9.21682992]
[1737832103341,0.02561334,258.06,258.05,3.8757]
[1737832104146,0.02561334,258.06,258.05,13.0642647]
[1737832105246,3.8744,258.14,258.09,3.8751]
[1737832106341,3.90294353,258.14,258.09,3.90180647]
[1737832107446,0.02854353,258.14,258.1,3.875]
[1737832107648,0.02854353,258.14,258.05,0.11570863]
[1737832108237,0.02854353,258.14,258.11,3.8748]
[1737832108538,0.02854353,258.14,258.05,0.11570863]
[1737832108539,0.02854353,258.14,258.06,2.5768]
[1737832108742,0.02854353,258.14,258.1,0.02577446]
[1737832109046,3.8745,258.13,258.1,0.02577446]
[1737832110446,0.02854353,258.14,258.1,0.02577446]
[1737832111847,3.90294353,258.14,258.1,0.02577446]
[1737832112749,5.86823222,258.23,258.13,5.86823222]
[1737832112943,5.86823222,258.21,258.13,5.86823222]
[1737832113941,0.02446431,258.2,258.14,0.027762]
[1737832114153,3.8738,258.18,258.14,0.027762]
[1737832114746,3.8741,258.16,258.14,0.027762]
[1737832114943,0.02446431,258.2,258.14,0.027762]
[1737832114944,5.86823222,258.19,258.14,0.027762]
[1737832115450,3.8742,258.15,258.14,0.027762]
[1737832115642,5.86823222,258.15,258.07,5.86823222]
[1737832116246,5.86823222,258.15,258.07,9.74363222]
[1737832116448,5.86823222,258.15,258.07,5.86823222]
[1737832116648,5.86823222,258.15,258.05,5.86823222]
[1737832116850,5.86823222,258.13,258.08,0.0282353]
[1737832117650,3.8749,258.11,258.08,0.0282353]
[1737832118148,0.02728055,258.14,258.08,0.0282353]
[1737832118343,0.02728055,258.14,258.08,3.9035353]
[1737832118549,0.02728055,258.14,258.09,5.86823222]
[1737832118750,3.8747,258.13,258.09,5.86823222]
[1737832118951,0.02728055,258.14,258.08,0.0282353]
[1737832119455,3.8748,258.12,258.08,0.0282353]
[1737832121453,0.02728055,258.14,258.08,0.0282353]
[1737832121654,3.8745,258.13,258.09,9.74333222]
[1737832122052,3.8745,258.13,258.11,5.86823222]
[1737832122253,0.02728055,258.14,258.11,9.74303222]
[1737832123858,0.02728055,258.14,258.13,5.86823222]
[1737832127863,0.02728055,258.14,258.13,9.74273222]
[1737832129469,0.02728055,258.14,258.13,5.86823222]
[1737832129865,5.86823222,258.28,258.13,5.86823222]
[1737832130062,5.86823222,258.28,258.19,5.86823222]
[1737832130267,3.8728,258.25,258.19,9.74183222]
[1737832130662,5.86823222,258.28,258.19,9.74183222]
[1737832130865,3.8729,258.24,258.19,9.74183222]
[1737832131069,3.8729,258.24,258.21,0.02811975]
[1737832131272,3.89983743,258.26,258.21,9.76955197]
[1737832131672,3.89983743,258.26,258.21,5.89635197]
[1737832131970,0.02723743,258.26,258.22,3.8732]
[1737832132474,0.02723743,258.26,258.21,5.89635197]
[1737832132675,0.02723743,258.26,258.23,3.873]
[1737832133270,0.02723743,258.26,258.23,9.74123222]
[1737832133674,0.02723743,258.26,258.24,3.8729]
[1737832133874,0.02723743,258.26,258.25,5.86823222]
[1737832134969,5.86823222,258.36,258.25,5.86823222]
[1737832135172,5.86823222,258.38,258.31,5.86823222]
[1737832135876,3.8713,258.35,258.31,5.86823222]
[1737832136472,0.0285739,258.36,258.3,0.02482567]
[1737832136677,5.86823222,258.34,258.3,0.02482567]
[1737832137277,3.8718,258.31,258.3,0.02482567]
[1737832143873,9.15723342,258.34,258.16,9.15723342]
[1737832144079,9.15723342,258.34,258.2,3.8735]
[1737832144478,9.15723342,258.34,258.16,9.15723342]
[1737832144678,3.8727,258.26,258.21,3.8733]
[1737832145081,3.89852597,258.26,258.21,3.90301746]
[1737832145973,3.89852597,258.26,258.22,3.8732]
[1737832146881,0.02582597,258.26,258.23,3.873]
[1737832147082,0.02582597,258.26,258.21,0.02971746]
[1737832147278,9.15723342,258.42,258.24,9.15723342]
[1737832147777,9.15723342,258.42,258.3,3.8719]
[1737832147978,2.89707424,258.41,258.3,3.8719]
[1737832148480,0.02910553,258.38,258.33,0.0286579]
[1737832150082,3.871,258.37,258.33,0.0286579]
[1737832150380,0.02910553,258.38,258.33,0.0286579]
[1737832150576,3.8714,258.34,258.33,0.0286579]
[1737832151183,3.8721,258.3,258.24,0.02472657]
[1737832151382,9.15723342,258.38,258.2,9.15723342]
[1737832152382,0.02607502,258.32,258.26,0.02617067]
[1737832153184,3.8725,258.27,258.26,0.02617067]
[1737832160686,3.8725,258.27,258.26,7.067e-05]
[1737832161685,9.73730335,258.27,258.26,7.067e-05]
[1737832162587,12.63572653,258.27,258.26,7.067e-05]
[1737832163386,9.73730335,258.27,258.26,7.067e-05]
[1737832163788,3.8725,258.27,258.26,7.067e-05]
[1737832164788,6.77204362,258.27,258.26,7.067e-05]
[1737832166790,9.35693173,258.27,258.26,7.067e-05]
[1737832170085,9.35693173,258.27,258.08,9.16326518]
[1737832170289,3.8744,258.14,258.1,3.875]
[1737832170688,3.8742,258.16,258.11,3.8748]
[1737832170885,9.16326518,258.25,258.11,3.8748]
[1737832171088,2.5841398,258.24,258.08,9.16326518]
[1737832171392,3.8746,258.13,258.09,3.875]
[1737832173794,3.8746,258.13,258.04,6.36724921]
[1737832175097,3.8746,258.13,258.06,0.02898285]
[1737832175893,3.8746,258.13,258.08,3.8751]
[1737832176497,0.02657617,258.14,258.06,0.02898285]
[1737832176697,0.02657617,258.14,258.13,3.8745]
[1737832176897,0.02657617,258.14,258.08,9.16326518]
[1737832177891,3.90097617,258.14,258.09,3.8751]
[1737832180502,3.8746,258.13,258.09,3.8751]
[1737832182504,3.8747,258.12,258.07,3.8754]
[1737832182801,0.02657617,258.14,258.06,0.02898285]
[1737832183202,3.8749,258.11,258.06,3.90448285]
[1737832183595,0.02657617,258.14,258.06,0.02898285]
[1737832183903,3.8754,258.08,258.06,0.02898285]
[1737832184598,3.8751,258.1,258.06,0.02898285]
[1737832185199,0.02657617,258.14,258.06,0.02898285]
[1737832185400,3.8752,258.09,258.06,0.02898285]
[1737832189512,3.8753,258.08,258.06,0.02898285]
[1737832190309,3.8752,258.09,258.06,0.02898285]
[1737832191308,3.8754,258.07,258.06,0.02898285]
[1737832196110,5.87018909,258.09,257.97,5.87018909]
[1737832197225,3.876,258.04,258.0,0.027231]
[1737832197819,0.02803031,258.06,258.0,5.89742009]
[1737832198123,3.90373031,258.06,258.0,5.89742009]
[1737832199522,3.8758,258.05,258.0,5.89742009]
[1737832199725,3.8758,258.05,258.01,3.8763]
[1737832200825,3.8759,258.04,258.0,5.89742009]
[1737832201627,0.02803031,258.06,258.0,5.89742009]
[1737832201826,3.8761,258.03,258.0,5.89742009]
[1737832202019,0.02803031,258.06,258.0,5.89742009]
[1737832203728,3.876,258.04,258.0,5.89742009]
[1737832203931,0.02803031,258.06,258.0,5.89742009]
[1737832204931,3.90373031,258.06,258.01,3.8763]
[1737832205933,3.90373031,258.06,258.0,5.89742009]
[1737832205934,0.02803031,258.06,258.05,3.8757]
[1737832206124,5.87018909,258.19,258.03,5.87018909]
[1737832206328,2.58113273,258.18,258.09,5.87018909]
[1737832206630,5.87018909,258.19,258.09,5.87018909]
[1737832206822,2.58152892,258.18,258.09,5.87018909]
[1737832207132,0.02443485,258.16,258.11,0.02652993]
[1737832207725,2.89733075,258.15,258.11,0.02652993]
[1737832208232,2.89733075,258.14,258.11,0.02652993]
[1737832208927,0.02443485,258.16,258.12,3.8746]
[1737832209425,2.89772106,258.15,258.12,3.8746]
[1737832209934,0.02443485,258.16,258.12,3.8746]
[1737832210329,0.02443485,258.16,258.11,0.02652993]
[1737832210632,0.02443485,258.16,258.13,3.8745]
[1737832211036,0.02443485,258.16,258.15,9.74438909]
[1737832211335,5.87018909,258.28,258.15,5.87018909]
[1737832211534,2.582639,258.27,258.18,5.87018909]
[1737832211734,5.87018909,258.28,258.18,5.87018909]
[1737832212035,2.89850447,258.26,258.19,3.8736]
[1737832212232,2.89850447,258.26,258.21,5.87018909]
[1737832212528,0.02744499,258.25,258.21,5.87018909]
[1737832212734,5.87018909,258.22,258.21,0.02745654]
[1737832213128,8.76869356,258.22,258.12,9.74478909]
[1737832213332,5.87018909,258.19,258.12,5.87018909]
[1737832213525,3.8739,258.18,258.12,5.87018909]
[1737832214035,6.77240447,258.18,258.12,5.87018909]
[1737832214234,3.874,258.17,258.12,5.89648872]
[1737832216237,0.02657927,258.18,258.12,5.89648872]
[1737832216535,3.8741,258.16,258.12,5.89648872]
[1737832217936,5.89676836,258.18,258.09,5.87018909]
[1737832219035,5.89676836,258.18,258.11,0.02739596]
[1737832220032,2.8882684,258.17,258.11,0.02739596]
[1737832220233,3.8745,258.13,258.11,0.02739596]
[1737832221238,3.8745,258.13,258.11,5.89758505]
[1737832225041,3.8747,258.12,258.11,0.02739596]
[1737832231552,3.8757,258.05,258.04,5.87018909]
[1737832231751,3.8757,258.05,258.02,5.87018909]
[1737832232651,3.8763,258.02,258.0,5.87018909]
[1737832233552,3.8765,258.0,257.98,5.87018909]
[1737832236153,0.02565072,258.04,257.96,5.87018909]
[1737832236354,0.02565072,258.04,258.01,5.87018909]
[1737832236654,0.02565072,258.04,258.03,5.87018909]
[1737832236853,3.8748,258.12,258.03,9.74618909]
[1737832237151,5.87018909,258.12,258.05,5.87018909]
[1737832237352,5.87018909,258.12,258.03,5.87018909]
[1737832237545,5.87018909,258.1,258.01,5.87018909]
[1737832237746,5.87018909,258.08,257.99,5.87018909]
[1737832237951,3.8759,258.04,257.99,5.87018909]
[1737832238155,3.8759,258.04,258.01,0.02789885]
[1737832238352,0.02543151,258.06,258.01,5.89808794]
[1737832238553,3.90113151,258.06,258.01,5.87018909]
[1737832238753,3.90113151,258.06,258.03,5.87018909]
[1737832238949,0.02543151,258.06,258.03,5.87018909]
[1737832239155,0.02543151,258.06,258.05,5.87018909]
[1737832239953,0.02543151,258.06,258.05,9.74588909]
[1737832240153,0.02543151,258.06,258.05,5.87018909]
[1737832240352,0.02543151,258.06,258.01,5.87018909]
[1737832240554,0.02543151,258.06,257.99,5.87018909]
[1737832241755,0.02543151,258.06,258.01,3.8763]
[1737832242051,0.02543151,258.06,257.99,5.87018909]
[1737832242556,0.02543151,258.06,258.01,5.87018909]
[1737832242755,3.8758,258.05,258.01,5.87018909]
[1737832248758,0.02543151,258.06,258.03,5.87018909]
[1737832248959,0.02543151,258.06,258.05,5.87018909]
[1737832249459,0.02543151,258.06,258.05,9.74588909]
[1737832251662,1.245,258.18,258.09,3.8751]
[1737832251859,1.245,258.18,258.11,5.87018909]
[1737832252060,3.8738,258.18,258.13,5.87018909]
[1737832252361,5.87018909,258.25,258.16,5.87018909]
[1737832252856,0.02556591,258.21,258.16,5.87018909]
[1737832253059,5.147,258.2,258.16,5.87018909]
[1737832253260,3.8736,258.2,258.16,5.87018909]
[1737832257863,0.02556591,258.21,258.16,5.87018909]
[1737832258565,0.02556591,258.21,258.17,5.87018909]
[1737832258765,0.02556591,258.21,258.08,3.9529]
[1737832258960,5.87018909,258.19,258.11,5.87018909]
[1737832259163,5.87018909,258.19,258.09,5.87018909]
[1737832259763,3.8741,258.16,258.1,3.8748]
[1737832259970,5.87018909,258.13,258.05,5.87018909]
[1737832260172,5.87018909,258.11,258.03,5.87018909]
[1737832260368,5.87018909,258.11,258.01,5.87018909]
[1737832260564,0.02641597,258.12,258.01,5.87018909]
[1737832260565,3.8755,258.07,258.01,5.87018909]
[1737832260970,3.90495733,258.07,258.01,5.87018909]
[1737832262071,3.90495733,258.07,258.01,9.74648909]
[1737832262574,0.02945733,258.07,258.01,5.87018909]
[1737832262775,0.02945733,258.07,258.04,3.8758]
[1737832263477,0.02945733,258.07,258.01,5.87018909]
[1737832263677,0.02945733,258.07,258.05,3.8757]
[1737832265578,0.02945733,258.07,258.06,5.87018909]
[1737832265775,1.3498,258.17,258.06,5.87018909]
[1737832266075,6.4714,258.18,258.1,5.87018909]
[1737832266273,1.3375,258.18,258.13,3.8745]
[1737832266480,5.87018909,258.22,258.14,5.87018909]
[1737832266780,3.8736,258.2,258.14,5.87018909]
[1737832266974,5.87018909,258.2,258.15,0.02793966]
[1737832267174,3.8742,258.16,258.1,3.8749]
[1737832267375,3.8742,258.16,258.15,0.02841773]
[1737832268980,3.8749,258.11,258.05,3.8757]
[1737832269175,1.2987,258.18,258.01,9.16740021]
[1737832269682,3.8746,258.13,258.04,3.8759]
[1737832269880,1.3077,258.17,258.01,9.16740021]
[1737832270081,0.02744142,258.11,258.01,9.16740021]
[1737832271584,3.8753,258.08,258.03,3.876]
[1737832272588,0.02744142,258.11,258.01,9.16740021]
[1737832272888,3.8751,258.1,258.05,3.8757]
[1737832274691,0.02744142,258.11,258.06,3.8756]
[1737832274893,3.90224142,258.11,258.06,3.8756]
[1737832276089,0.02744142,258.11,258.07,3.8754]
[1737832276288,1.3077,258.17,258.07,3.8754]
[1737832276594,0.02949568,258.12,258.07,3.8754]
[1737832276788,0.02949568,258.12,258.05,9.16740021]
[1737832276988,0.02949568,258.12,258.08,3.8752]
[1737832277692,0.02949568,258.12,258.11,3.8748]
[1737832279091,0.02949568,258.12,258.08,3.8752]
[1737832279694,3.8752,258.09,258.04,3.8758]
[1737832280094,3.90177766,258.09,258.04,3.8758]
[1737832281498,3.8754,258.08,258.03,3.8759]
[1737832282293,3.8758,258.05,258.01,9.16740021]
[1737832283092,3.8756,258.07,258.01,9.16740021]
[1737832283895,0.02657766,258.09,258.01,9.16740021]
[1737832284095,3.90187766,258.09,258.02,3.8762]
[1737832285593,3.90187766,258.09,258.03,3.8759]
[1737832285995,3.90187766,258.09,258.04,3.8759]
[1737832288393,0.02657766,258.09,258.01,9.16740021]
[1737832288599,0.02657766,258.09,258.08,3.8753]
[1737832289001,1.3077,258.17,258.06,9.16740021]
[1737832289195,1.2987,258.18,258.1,9.16740021]
[1737832289698,1.2987,258.18,258.15,5.86497093]
[1737832290095,1.2987,258.18,258.14,0.02574219]
[1737832290298,1.2987,258.18,258.11,5.86497093]
[1737832290498,3.8744,258.14,258.13,0.02975936]
[1737832290702,1.2987,258.18,258.13,0.02975936]
[1737832291002,1.2987,258.18,258.13,5.89473029]
[1737832291301,5.1725,258.18,258.13,5.89473029]
[1737832291702,3.8739,258.17,258.13,0.02975936]
[1737832292903,1.2987,258.18,258.13,0.02975936]
[1737832293602,3.874,258.17,258.13,0.02975936]
[1737832294402,3.8741,258.16,258.13,0.02975936]
[1737832295004,3.8743,258.15,258.13,0.02975936]
[1737832295199,1.2987,258.18,258.13,0.02975936]
[1737832295704,3.8744,258.14,258.13,0.02975936]
[1737832300605,3.8747,258.12,258.07,3.8754]
[1737832300905,1.2987,258.18,258.05,9.16542643]
[1737832301304,3.8746,258.13,258.08,3.8753]
[1737832301811,3.90138993,258.13,258.08,3.8753]
[1737832302008,3.8747,258.12,258.08,3.8753]
[1737832304911,3.8747,258.12,258.05,9.16542643]
[1737832305808,0.02678993,258.13,258.05,9.16542643]
[1737832306411,0.02678993,258.13,258.11,3.8748]
[1737832308717,0.02678993,258.13,258.05,9.16542643]
[1737832310019,0.02678993,258.13,258.01,9.16542643]
[1737832311220,3.875,258.1,258.05,3.8756]
[1737832311924,3.8748,258.12,258.05,3.8756]
[1737832312221,3.8748,258.12,258.06,3.8755]
[1737832313622,3.8748,258.12,258.07,5.86822516]
[1737832314221,3.8748,258.12,258.07,9.74362516]
[1737832314523,3.90138993,258.13,258.07,9.74362516]
[1737832314722,0.02678993,258.13,258.12,5.86822516]
[1737832314922,0.02678993,258.13,258.1,5.86822516]